fUST/lending_fUST_20240626
["ID","MTS","AMOUNT","RATE_DAILY","PERIOD"]
[330409872,1719353447352,-528.32,0.00016438,2]
[330409874,1719353447362,-500.0,0.00016438,2]
[330409876,1719353447370,-2540.11,0.00016438,2]
[330409878,1719353447379,-500.0,0.00016438,2]
[330409880,1719353447389,-515.42,0.00016438,2]
[330409882,1719353447398,-546.54,0.00016438,2]
[330409884,1719353447407,-500.0,0.00016438,2]
[330409886,1719353447415,-980.02,0.00016438,2]
[330409887,1719353447424,-500.0,0.00016438,2]
[330409889,1719353447434,-500.0,0.00016438,2]
[330409891,1719353447443,-366.27581196,0.00016438,2]
[330409893,1719353447451,-500.0,0.00016438,2]
[330409895,1719353447460,-1097.7,0.00016438,2]
[330409897,1719353447470,-500.0,0.00016438,2]
[330409899,1719353447479,-532.55,0.00016438,2]
[330409901,1719353447488,-618.15972955,0.00016438,2]
[330409903,1719353447498,-500.0,0.00016438,2]
[330409905,1719353447507,-500.0,0.00016438,2]
[330409907,1719353447516,-500.0,0.00016438,2]
[330409909,1719353447526,-500.0,0.00016438,2]
[330409911,1719353447535,-500.0,0.00016438,2]
[330409913,1719353447545,-500.0,0.00016438,2]
[330409915,1719353447554,-500.0,0.00016438,2]
[330409916,1719353447563,-500.0,0.00016438,2]
[330409918,1719353447572,-500.0,0.00016438,2]
[330409920,1719353447581,-678.69,0.00016438,2]
[330409922,1719353447590,-500.0,0.00016438,2]
[330409924,1719353447599,-611.69651806,0.00016438,2]
[330409926,1719353447609,-500.0,0.00016438,2]
[330409928,1719353447619,-500.0,0.00016438,2]
[330409930,1719353447629,-1463.96,0.00016438,2]
[330409932,1719353447638,-1074.3,0.00016438,2]
[330409934,1719353447647,-500.0,0.00016438,2]
[330409936,1719353447656,-500.0,0.00016438,2]
[330409938,1719353447666,-500.0,0.00016438,2]
[330409940,1719353447675,-1578.56,0.00016438,2]
[330409942,1719353447684,-500.0,0.00016438,2]
[330409944,1719353447693,-677.67,0.00016438,2]
[330409946,1719353447702,-579.79,0.00016438,2]
[330409948,1719353447711,-500.0,0.00016438,2]
[330409950,1719353447720,-500.0,0.00016438,2]
[330409951,1719353447729,-2804.47,0.00016438,2]
[330409953,1719353447738,-789.84,0.00016438,2]
[330409955,1719353447747,-4792.30843975,0.00016438,2]
[330412397,1719354211885,1446.7376581,0.00013986,2]
[330412399,1719354339441,209.474323,0.00013699,2]
[330412400,1719354370159,24900.0,0.00013573,2]
[330412405,1719354456500,8463.4814507,0.00013999,2]
[330412408,1719354585579,25585.38102931,0.00013999,2]
[330412409,1719354617275,164.83119203,0.00013999,2]
[330412442,1719354633582,-154.83742071,0.00014026,2]
[330412444,1719354633592,-300.0,0.00014999,2]
[330412446,1719354633602,-300.0,0.00014999,2]
[330412448,1719354633625,-1326.76257929,0.00015,2]
[330412962,1719354638712,-484.95531122,0.00015,2]
[330413044,1719354640556,-8100.79152327,0.00015,2]
[330413046,1719354640567,-2416.50301873,0.00015,2]
[330413048,1719354640577,-3923.20622618,0.0001508,2]
[330413050,1719354640588,-261.5634824,0.00015182,2]
[330413051,1719354640599,-261.56348239,0.00015471,2]
[330413052,1719354640612,-302.58982114,0.00015705,2]
[330413053,1719354640622,-1487.05343949,0.00015758,2]
[330413054,1719354640632,-261.56348239,0.0001576,2]
[330413055,1719354640641,-209.35974365,0.00015806,2]
[330413056,1719354640651,-154.83742071,0.00015992,2]
[330413057,1719354640661,-261.56348239,0.00016049,2]
[330413058,1719354640671,-154.83742071,0.00016163,2]
[330413059,1719354640680,-2040.5580749,0.00016163,2]
[330413060,1719354640691,-205.8057007,0.00016164,2]
[330413061,1719354640700,-205.8057007,0.00016164,2]
[330413062,1719354640710,-205.8057007,0.00016164,2]
[330413063,1719354640719,-205.8057007,0.00016164,2]
[330413064,1719354640728,-205.8057007,0.00016164,2]
[330413065,1719354640738,-205.8057007,0.00016164,2]
[330413066,1719354640749,-205.8057007,0.00016164,2]
[330413067,1719354640759,-205.8057007,0.00016164,2]
[330413068,1719354640768,-411.0279489,0.00016164,2]
[330413069,1719354640778,-587.56918089,0.00016275,2]
[330413070,1719354640787,-3074.84022806,0.00016276,2]
[330413071,1719354640797,-3074.84022806,0.00016276,2]
[330413072,1719354640807,-154.83742071,0.00016276,2]
[330413073,1719354640816,-154.83742071,0.00016279,2]
[330413074,1719354640825,-817.36545723,0.00016296,2]
[330413075,1719354640835,-1568.73091691,0.00016303,2]
[330413076,1719354640844,-5277.56392113,0.00016304,2]
[330413077,1719354640854,-2123.70110162,0.00016337,2]
[330413078,1719354640864,-2123.70110162,0.00016337,2]
[330413079,1719354640875,-401.50781608,0.00016337,2]
[330413080,1719354640884,-261.56348239,0.00016338,2]
[330413081,1719354640893,-166.22247411,0.00016437,2]
[330413082,1719354640903,-500.0,0.00016438,2]
[330413083,1719354640912,-501.57,0.00016438,2]
[330413084,1719354640921,-500.0,0.00016438,2]
[330413085,1719354640931,-500.0,0.00016438,2]
[330413087,1719354640940,-500.0,0.00016438,2]
[330413089,1719354640949,-500.0,0.00016438,2]
[330413091,1719354640959,-500.0,0.00016438,2]
[330413093,1719354640969,-500.0,0.00016438,2]
[330413095,1719354640978,-500.0,0.00016438,2]
[330413097,1719354640987,-500.0,0.00016438,2]
[330413098,1719354640997,-250.0,0.00016438,2]
[330413099,1719354641006,-500.0,0.00016438,2]
[330413100,1719354641015,-500.0,0.00016438,2]
[330413101,1719354641025,-500.0,0.00016438,2]
[330413102,1719354641035,-500.0,0.00016438,2]
[330413103,1719354641044,-500.0,0.00016438,2]
[330413104,1719354641054,-523.76,0.00016438,2]
[330413105,1719354641064,-1051.96,0.00016438,2]
[330413106,1719354641073,-500.0,0.00016438,2]
[330413107,1719354641083,-500.0,0.00016438,2]
[330413108,1719354641092,-682.91,0.00016438,2]
[330413109,1719354641102,-500.0,0.00016438,2]
[330413110,1719354641111,-1413.06,0.00016438,2]
[330413111,1719354641120,-500.0,0.00016438,2]
[330413112,1719354641130,-196.04479927,0.00016438,2]
[330413366,1719354643654,-303.95520073,0.00016438,2]
[330413368,1719354643664,-356.43430424,0.00016438,2]
[330413370,1719354643673,-1084.98,0.00016438,2]
[330413372,1719354643683,-94.95239886,0.00016438,2]
[330413374,1719354643696,-405.04760114,0.00016438,2]
[330413376,1719354643705,-500.0,0.00016438,2]
[330413378,1719354643715,-834.25,0.00016438,2]
[330413380,1719354643723,-65.02582186,0.00016438,2]
[330413383,1719354643735,-434.97417814,0.00016438,2]
[330413384,1719354643744,-500.0,0.00016438,2]
[330413386,1719354643754,-500.0,0.00016438,2]
[330413388,1719354643763,-500.0,0.00016438,2]
[330413390,1719354643772,-649.44,0.00016438,2]
[330413392,1719354643783,-500.0,0.00016438,2]
[330413394,1719354643792,-500.0,0.00016438,2]
[330413396,1719354643802,-500.0,0.00016438,2]
[330413399,1719354643812,-500.0,0.00016438,2]
[330413401,1719354643822,-359.29818027,0.00016438,2]
[330413413,1719354643927,-111.23533933,0.00016438,2]
[330414561,1719355014987,9985.58812005,0.000125,2]
[330414562,1719355031975,154.85288975,0.000125,2]
[330414564,1719355037517,323.66188023,0.0001,2]
[330414590,1719355127570,154.83742071,0.0001,2]
[330414633,1719355181077,154.83742071,0.00012121,2]
[330414653,1719355201272,155.15799191,0.00012121,2]
[330414663,1719355283574,154.83742071,0.00012121,2]
[330414664,1719355388590,154.83742071,0.00012121,2]
[330414665,1719355418585,154.83742071,0.00012121,2]
[330414666,1719355438516,261.417451,0.00013699,2]
[330414667,1719355495038,199.684578,0.00013619,2]
[330414668,1719355533730,154.83742071,0.00013619,2]
[330414669,1719355636640,154.83742071,0.00013619,2]
[330414670,1719355667884,154.83742071,0.00013999,2]
[330414671,1719355740612,154.83742071,0.00013999,2]
[330414672,1719355770602,154.83742071,0.00013999,2]
[330414674,1719355816212,524.47181177,0.00013999,2]
[330414675,1719355829366,24900.0,0.00013486,2]
[330414692,1719355832893,-398.8,0.00014128,2]
[330414702,1719355833065,-1724.90110162,0.00014128,2]
[330414703,1719355833077,-300.0,0.0001413,2]
[330414704,1719355833087,-300.0,0.0001413,2]
[330414705,1719355833097,-3074.84022806,0.00014131,2]
[330414706,1719355833106,-1583.26881397,0.00014324,2]
[330414707,1719355833115,-4936.68508114,0.00014507,2]
[330414716,1719355840544,-181.88159609,0.00014131,2]
[330414719,1719355840554,-936.33523994,0.00014507,2]
[330414721,1719355840564,-85.28518529,0.0001464,2]
[330414900,1719355847328,-3074.84022806,0.00014128,2]
[330414902,1719355847338,-540.70969631,0.0001464,2]
[330414904,1719355847347,-154.83742071,0.00014999,2]
[330414906,1719355847357,-990.49460368,0.00014999,2]
[330414908,1719355847367,-420.0,0.00015543,2]
[330414909,1719355847376,-77.63496018,0.00015738,2]
[330414919,1719356015520,2123.70110162,0.00013999,2]
[330414920,1719356093149,229.92814207,0.00013999,2]
[330415001,1719356512425,24900.0,0.00013956,2]
[330415200,1719356867420,42185.65991976,0.00013999,2]
[330415233,1719357032138,-334.86214888,0.00014026,2]
[330415234,1719357032151,-482.50330835,0.00014026,2]
[330415235,1719357032161,-780.41127043,0.00014088,2]
[330415236,1719357032170,-287.50463642,0.00014088,2]
[330415237,1719357032180,-164.83119203,0.00014128,2]
[330415238,1719357032189,-261.417451,0.00014711,2]
[330415239,1719357032198,-1217.98321317,0.00014999,2]
[330415240,1719357032210,-1289.46210911,0.00014999,2]
[330415241,1719357032219,-1184.02284637,0.00015,2]
[330415242,1719357032230,-3057.26,0.00015,2]
[330415338,1719357038095,-1000.81600326,0.00015,2]
[330415538,1719357043314,-308.11920521,0.00015,2]
[330415555,1719357046122,-618.79,0.00015,2]
[330415635,1719357081938,525.34267805,0.00018182,30]
[330415641,1719357779950,525.34267805,0.00022038,60]
[330415642,1719357788871,280.0654976,0.00013971,2]
[330415643,1719357792259,9600.62757657,0.00013999,2]
[330415647,1719358027804,22490.98693834,0.00013999,2]
[330415648,1719358143643,5005.218266,1e-08,2]
[330415692,1719358232599,-269.24912565,0.00014238,2]
[330415694,1719358232611,-1010.87973439,0.00014238,2]
[330415696,1719358232624,-913.496781,0.00014238,2]
[330415698,1719358232637,-569.0,0.00014238,2]
[330415882,1719358238364,-3792.79999999,0.00014238,2]
[330415884,1719358238377,-11220.34265571,0.00014238,2]
[330415894,1719358238635,-655.23892612,0.00014238,2]
[330415939,1719358240746,-3401.80205462,0.00014238,2]
[330415942,1719358240758,-3067.19072252,0.00014238,2]
[330415944,1719358240769,-3074.84022806,0.00014324,2]
[330415946,1719358240783,-154.83742071,0.00014691,2]
[330415948,1719358240793,-5280.10467953,0.00014732,2]
[330415950,1719358240803,-670.95913864,0.00014951,2]
[330415952,1719358240812,-94.79194516,0.00015,2]
[330415954,1719358240822,-154.4743396,0.00015,2]
[330415956,1719358240832,-373.8816229,0.00015341,2]
[330415958,1719358240842,-306.0,0.00015342,2]
[330415961,1719358240852,-2123.70110162,0.00015398,2]
[330415963,1719358240862,-327.2730109,0.000154,2]
[330415965,1719358240872,-153.0,0.000154,2]
[330415967,1719358240882,-153.0,0.000155,2]
[330415969,1719358240895,-153.0,0.000155,2]
[330415974,1719358241093,-153.0,0.000155,2]
[330415975,1719358241109,-154.68391025,0.000155,2]
[330415976,1719358241118,-307.3086588,0.000156,2]
[330415977,1719358241129,-155.2730975,0.000156,2]
[330415978,1719358241140,-622.54795693,0.00015699,2]
[330415979,1719358241150,-2115.0148568,0.00015705,2]
[330415980,1719358241159,-3578.83034508,0.00015705,2]
[330415981,1719358241172,-138.79605272,0.00015705,2]
[330415982,1719358241184,-151.0,0.00015738,2]
[330415983,1719358241195,-6971.98727304,0.00015806,2]
[330415984,1719358241204,-151.0,0.00015806,2]
[330415985,1719358241213,-154.68391023,0.00015919,2]
[330415986,1719358241223,-151.0,0.00015975,2]
[330415987,1719358241232,-151.0,0.00015975,2]
[330415988,1719358241242,-151.0,0.00015975,2]
[330415989,1719358241252,-151.0,0.00015975,2]
[330415990,1719358241262,-289.346166,0.00015975,2]
[330415991,1719358241271,-1501.26270931,0.00015988,2]
[330415992,1719358241281,-151.0,0.00015988,2]
[330415993,1719358241290,-524.47181177,0.00015992,2]
[330415994,1719358241300,-262.48436156,0.00015992,2]
[330415995,1719358241309,-817.36545723,0.00016222,2]
[330415996,1719358241319,-239.60614247,0.00016222,2]
[330415997,1719358241328,-597.61557581,0.00016287,2]
[330415998,1719358241337,-401.69132048,0.00016287,2]
[330415999,1719358241347,-531.01956017,0.00016288,2]
[330416000,1719358241357,-723.68394442,0.00016288,2]
[330416001,1719358241367,-319.53677074,0.00016288,2]
[330416002,1719358241377,-490.22115977,0.00016288,2]
[330416003,1719358241387,-318.0264791,0.00016288,2]
[330416004,1719358241396,-179.51789787,0.00016288,2]
[330416005,1719358241406,-402.58396579,0.00016289,2]
[330416006,1719358241415,-227.88919192,0.00016289,2]
[330416007,1719358241425,-164.83119203,0.00016289,2]
[330416008,1719358241435,-286.35715775,0.00016289,2]
[330416009,1719358241445,-842.54666328,0.00016289,2]
[330416010,1719358241455,-172.3010942,0.0001629,2]
[330416011,1719358241464,-208.75334757,0.0001629,2]
[330416012,1719358241473,-151.0,0.0001629,2]
[330416013,1719358241483,-151.0,0.0001629,2]
[330416014,1719358241493,-151.0,0.0001629,2]
[330416015,1719358241502,-195.45518522,0.00016296,2]
[330416016,1719358241511,-151.0,0.00016296,2]
[330416017,1719358241521,-151.0,0.00016296,2]
[330416018,1719358241531,-151.0,0.00016299,2]
[330416019,1719358241540,-151.0,0.00016299,2]
[330416020,1719358241550,-151.0,0.00016299,2]
[330416021,1719358241560,-151.0,0.00016299,2]
[330416022,1719358241569,-151.0,0.00016299,2]
[330416023,1719358241578,-151.0,0.00016299,2]
[330416024,1719358241588,-3923.20622618,0.00016299,2]
[330416025,1719358241597,-1658.92546071,0.000163,2]
[330416061,1719358282093,239.60614247,5e-05,2]
[330416062,1719358287947,373.25952622,5e-05,2]
[330416063,1719358288173,2123.70110162,5e-05,2]
[330416064,1719358291164,156.42887627,5e-05,2]
[330416065,1719358348185,2123.70110162,6.061e-05,2]
[330416069,1719358409215,2123.70110162,7.347e-05,2]
[330416070,1719358469190,2123.70110162,8.905e-05,2]
[330416072,1719358590243,2123.70110162,0.00010794,2]
[330416075,1719358638246,7234.07750944,0.0001,2]
[330416076,1719358656060,524.47181177,0.00013083,2]
[330416078,1719358715878,524.01321473,0.00012121,2]
[330416085,1719359354183,3527.804952,0.00013699,2]
[330416127,1719359432319,-316.23475701,0.00014128,2]
[330416273,1719359438490,-501.13070022,0.00014128,2]
[330416274,1719359438500,-516.79977625,0.00014237,2]
[330416275,1719359438510,-164.83119203,0.00014278,2]
[330416276,1719359438520,-1353.40838381,0.00014279,2]
[330416277,1719359438748,-763.53134895,0.00014279,2]
[330416278,1719359438759,-1000.5391485,0.00014279,2]
[330416298,1719359443469,-4731.17566643,0.00014279,2]
[330416305,1719359446452,-719.79,0.00014279,2]
[330416306,1719359446557,-7811.24441167,0.00014279,2]
[330416310,1719359602558,265.848604,0.00013947,2]
[330416311,1719359690123,289.68133379,0.00013999,2]
[330416312,1719359761764,273.37336231,9.9e-05,2]
[330416313,1719359769642,235.60219224,9.9e-05,2]
[330416314,1719359850172,239.36045579,0.00012,2]
[330416315,1719359853360,154.83742071,0.00012,2]
[330416317,1719359927808,992.76573426,0.00013999,2]
[330416319,1719360375164,265.848605,0.00013699,2]
[330416320,1719360437083,5280.10467953,0.00013982,2]
[330416371,1719360632769,-1302.0,0.00014026,2]
[330416486,1719360638553,-10.82746859,0.00014026,2]
[330416487,1719360638564,-1487.05343949,0.00014128,2]
[330416488,1719360638574,-11120.42606657,0.00014278,2]
[330416489,1719360638584,-181.58035626,0.00014279,2]
[330416490,1719360638594,-24900.0,0.00014309,2]
[330416491,1719360638604,-784.19833675,0.00014362,2]
[330416492,1719360638614,-5232.21403661,0.00014739,2]
[330416493,1719360638624,-784.19833675,0.00014856,2]
[330416494,1719360638635,-947.47485199,0.00015,2]
[330416495,1719360638645,-413.3665132,0.00015,2]
[330416496,1719360638661,-784.19833675,0.0001535,2]
[330416497,1719360638672,-6971.98727304,0.00015442,2]
[330416498,1719360638682,-307.4048734,0.000156,2]
[330416499,1719360638691,-1835.46124938,0.00015657,2]
[330416500,1719360638701,-1605.60425411,0.00015659,2]
[330416501,1719360638711,-620.13986959,0.0001566,2]
[330416502,1719360638721,-5461.98222843,0.00015705,2]
[330416503,1719360638731,-211.5228394,0.00015737,2]
[330416504,1719360638741,-784.19833675,0.00015844,2]
[330416505,1719360638751,-151.0,0.00015988,2]
[330416506,1719360638761,-151.0,0.00015988,2]
[330416507,1719360638771,-151.0,0.00015988,2]
[330416508,1719360638781,-151.0,0.00015988,2]
[330416509,1719360638790,-238.619125,0.00015992,2]
[330416510,1719360638800,-238.619125,0.00015992,2]
[330416511,1719360638809,-151.0,0.00015992,2]
[330416512,1719360638819,-17229.55965979,0.00015992,2]
[330416513,1719360638829,-309.61298378,0.00015992,2]
[330416514,1719360638839,-2040.5580749,0.00015992,2]
[330416515,1719360638852,-151.0,0.00015995,2]
[330416516,1719360638862,-151.0,0.00015995,2]
[330416517,1719360638871,-151.0,0.00015995,2]
[330416518,1719360638883,-1218.98201888,0.00015996,2]
[330416519,1719360638893,-846.49188393,0.00015997,2]
[330416520,1719360638906,-154.83742071,0.00016112,2]
[330416521,1719360638916,-2129.54772975,0.00016113,2]
[330416522,1719360638926,-151.0,0.00016114,2]
[330416523,1719360638936,-151.0,0.00016114,2]
[330416524,1719360638947,-151.0,0.00016114,2]
[330416525,1719360638956,-151.0,0.00016115,2]
[330416526,1719360638966,-151.0,0.00016115,2]
[330416527,1719360638976,-238.619125,0.00016222,2]
[330416528,1719360638986,-238.619125,0.00016222,2]
[330416529,1719360638995,-238.619125,0.00016222,2]
[330416530,1719360639005,-238.619125,0.00016222,2]
[330416531,1719360639015,-151.0,0.00016222,2]
[330416532,1719360639025,-151.0,0.00016222,2]
[330416533,1719360639037,-401.69132048,0.00016224,2]
[330416534,1719360639048,-151.0,0.00016225,2]
[330416535,1719360639058,-151.0,0.00016225,2]
[330416536,1719360639068,-151.0,0.00016225,2]
[330416537,1719360639078,-897.235,0.00016281,2]
[330416538,1719360639088,-154.83742071,0.00016287,2]
[330416539,1719360639099,-151.0,0.00016288,2]
[330416540,1719360639108,-151.0,0.00016288,2]
[330416541,1719360639118,-292.92115938,0.00016292,2]
[330416542,1719360639129,-842.37295431,0.00016293,2]
[330416543,1719360639140,-151.0,0.00016295,2]
[330416544,1719360639152,-597.61557581,0.00016296,2]
[330416545,1719360639163,-238.619125,0.00016296,2]
[330416546,1719360639174,-238.619125,0.00016296,2]
[330416547,1719360639185,-151.0,0.00016296,2]
[330416548,1719360639195,-154.83742071,0.00016299,2]
[330416549,1719360639206,-154.83742071,0.00016299,2]
[330416550,1719360639222,-11455.88959929,0.000163,2]
[330416551,1719360639232,-175.915812,0.000163,2]
[330416552,1719360639243,-238.619125,0.000163,2]
[330416553,1719360639253,-238.619125,0.000163,2]
[330416554,1719360639264,-151.0,0.000163,2]
[330416555,1719360639275,-151.0,0.000163,2]
[330416556,1719360639287,-151.0,0.000163,2]
[330416557,1719360639299,-151.0,0.000163,2]
[330416558,1719360639309,-238.619125,0.00016305,2]
[330416559,1719360639319,-238.619125,0.00016305,2]
[330416560,1719360639333,-153.0,0.00016317,2]
[330416561,1719360639344,-238.619125,0.00016338,2]
[330416562,1719360639355,-238.619125,0.00016338,2]
[330416563,1719360639365,-151.0,0.00016338,2]
[330416564,1719360639375,-151.0,0.00016338,2]
[330416565,1719360639386,-784.19833675,0.00016338,2]
[330416566,1719360639397,-151.0,0.00016338,2]
[330416567,1719360639409,-151.0,0.00016338,2]
[330416568,1719360639420,-2000.0,0.00016338,2]
[330416569,1719360639430,-266.52646974,0.00016419,2]
[330416570,1719360639440,-176.03735811,0.0001642,2]
[330416571,1719360639451,-154.83742071,0.0001642,2]
[330416572,1719360639461,-155.28354517,0.00016421,2]
[330416573,1719360639472,-990.49460368,0.00016422,2]
[330416574,1719360639482,-500.0,0.00016438,2]
[330416575,1719360639493,-500.0,0.00016438,2]
[330416576,1719360639504,-1075.21,0.00016438,2]
[330416577,1719360639514,-768.89,0.00016438,2]
[330416578,1719360639524,-507.87549518,0.00016438,2]
[330416579,1719360639535,-500.0,0.00016438,2]
[330416580,1719360639545,-783.41,0.00016438,2]
[330416581,1719360639555,-17210.14,0.00016438,2]
[330416582,1719360639565,-500.0,0.00016438,2]
[330416583,1719360639576,-500.0,0.00016438,2]
[330416584,1719360639587,-500.0,0.00016438,2]
[330416585,1719360639597,-500.0,0.00016438,2]
[330416586,1719360639608,-541.89994109,0.00016438,2]
[330416587,1719360639619,-500.0,0.00016438,2]
[330416588,1719360639630,-763.43,0.00016438,2]
[330416589,1719360639640,-500.0,0.00016438,2]
[330416590,1719360639650,-500.0,0.00016438,2]
[330416591,1719360639662,-500.0,0.00016438,2]
[330416592,1719360639673,-500.0,0.00016438,2]
[330416593,1719360639683,-500.0,0.00016438,2]
[330416594,1719360639694,-500.0,0.00016438,2]
[330416595,1719360639704,-500.0,0.00016438,2]
[330416596,1719360639715,-500.0,0.00016438,2]
[330416597,1719360639726,-500.0,0.00016438,2]
[330416598,1719360639736,-500.0,0.00016438,2]
[330416599,1719360639746,-526.05,0.00016438,2]
[330416600,1719360639756,-500.0,0.00016438,2]
[330416601,1719360639767,-500.0,0.00016438,2]
[330416602,1719360639777,-500.0,0.00016438,2]
[330416603,1719360639787,-500.0,0.00016438,2]
[330416604,1719360639797,-500.0,0.00016438,2]
[330416605,1719360639807,-500.39665714,0.00016438,2]
[330416606,1719360639816,-500.0,0.00016438,2]
[330416607,1719360639827,-500.0,0.00016438,2]
[330416608,1719360639837,-500.0,0.00016438,2]
[330416609,1719360639847,-1020.04,0.00016438,2]
[330416610,1719360639857,-991.62,0.00016438,2]
[330416611,1719360639867,-500.0,0.00016438,2]
[330416612,1719360639878,-500.0,0.00016438,2]
[330416613,1719360639888,-500.0,0.00016438,2]
[330416614,1719360639898,-533.21,0.00016438,2]
[330416615,1719360639911,-500.0,0.00016438,2]
[330416616,1719360639921,-500.0,0.00016438,2]
[330416617,1719360639931,-500.0,0.00016438,2]
[330416618,1719360639940,-500.0,0.00016438,2]
[330416619,1719360639950,-500.0,0.00016438,2]
[330416620,1719360639960,-500.0,0.00016438,2]
[330416621,1719360639971,-500.0,0.00016438,2]
[330416622,1719360639980,-500.0,0.00016438,2]
[330416623,1719360639990,-500.0,0.00016438,2]
[330416624,1719360640000,-500.0,0.00016438,2]
[330416625,1719360640011,-500.0,0.00016438,2]
[330416626,1719360640021,-500.0,0.00016438,2]
[330416627,1719360640031,-500.0,0.00016438,2]
[330416628,1719360640040,-473.87871896,0.00016438,2]
[330416629,1719360640050,-500.0,0.00016438,2]
[330416631,1719360640060,-500.0,0.00016438,2]
[330416632,1719360640069,-570.08,0.00016438,2]
[330416633,1719360640079,-500.0,0.00016438,2]
[330416634,1719360640088,-500.0,0.00016438,2]
[330416635,1719360640097,-500.0,0.00016438,2]
[330416636,1719360640107,-935.03,0.00016438,2]
[330416638,1719360640117,-1317.05,0.00016438,2]
[330416640,1719360640127,-500.0,0.00016438,2]
[330416641,1719360640137,-500.0,0.00016438,2]
[330416642,1719360640148,-500.0,0.00016438,2]
[330416643,1719360640160,-500.0,0.00016438,2]
[330416644,1719360640170,-500.0,0.00016438,2]
[330416645,1719360640179,-500.0,0.00016438,2]
[330416646,1719360640189,-500.0,0.00016438,2]
[330416647,1719360640199,-500.0,0.00016438,2]
[330416648,1719360640215,-500.0,0.00016438,2]
[330416649,1719360640225,-1178.66,0.00016438,2]
[330416650,1719360640236,-517.19,0.00016438,2]
[330416651,1719360640248,-500.0,0.00016438,2]
[330416652,1719360640259,-500.0,0.00016438,2]
[330416653,1719360640272,-500.0,0.00016438,2]
[330416654,1719360640283,-500.0,0.00016438,2]
[330416656,1719360640294,-500.0,0.00016438,2]
[330416658,1719360640304,-500.0,0.00016438,2]
[330416660,1719360640313,-500.0,0.00016438,2]
[330416661,1719360640322,-597.10015087,0.00016438,2]
[330416663,1719360640332,-901.62,0.00016438,2]
[330416665,1719360640342,-893.0,0.00016438,2]
[330416666,1719360640352,-500.0,0.00016438,2]
[330416668,1719360640362,-500.0,0.00016438,2]
[330416669,1719360640372,-500.0,0.00016438,2]
[330416670,1719360640382,-500.0,0.00016438,2]
[330416671,1719360640392,-500.0,0.00016438,2]
[330416672,1719360640403,-500.0,0.00016438,2]
[330416673,1719360640412,-500.0,0.00016438,2]
[330416674,1719360640423,-500.0,0.00016438,2]
[330416675,1719360640432,-500.0,0.00016438,2]
[330416676,1719360640443,-500.0,0.00016438,2]
[330416677,1719360640453,-500.0,0.00016438,2]
[330416678,1719360640463,-500.0,0.00016438,2]
[330416679,1719360640473,-500.0,0.00016438,2]
[330416680,1719360640484,-500.0,0.00016438,2]
[330416681,1719360640493,-500.0,0.00016438,2]
[330416682,1719360640503,-500.0,0.00016438,2]
[330416683,1719360640514,-500.0,0.00016438,2]
[330416684,1719360640523,-2664.33,0.00016438,2]
[330416685,1719360640533,-500.0,0.00016438,2]
[330416686,1719360640543,-515.6730036,0.00016438,2]
[330416687,1719360640553,-500.0,0.00016438,2]
[330416688,1719360640563,-1102.71,0.00016438,2]
[330416689,1719360640573,-4229.19,0.00016438,2]
[330416690,1719360640583,-500.0,0.00016438,2]
[330416691,1719360640593,-370.93717894,0.00016438,2]
[330416692,1719360640603,-500.0,0.00016438,2]
[330416693,1719360640612,-557.25,0.00016438,2]
[330416694,1719360640622,-500.0,0.00016438,2]
[330416695,1719360640632,-518.09414196,0.00016438,2]
[330416696,1719360640642,-500.0,0.00016438,2]
[330416697,1719360640651,-500.0,0.00016438,2]